Cogmind - Beta 15 @@@ ROGUE MODE // 2025.06.26 @ 23:35:36 Player: naththebg Result: Destroyed by G-73 Enforcer with Phase Gun Performance ------------- Evolutions (9) 4500 Regions Visited (16) 3200 Robots Destroyed (295) 1475 Value Destroyed (12374) 12374 Prototype IDs (50) 1000 Alien Tech Used (0) 0 Bonus (3164) 3164 TOTAL SCORE: 25713 Bonus ------- High Alert Combat Kills 1321 Follower Combat Kills 535 Met Warlord at Base 500 MAIN.C Attacked Warlord 500 Warlord Defense Kills 420 Friendly Fire -112 Cogmind --------- Core Integrity 0/1600 Matter 66/300 Energy 43/100 System Corruption 17% Temperature Cool (11) Movement Flying (40) Location -1/Access Parts ------- > --- POWER (3) -------- (None) > --- PROPULSION (6) --- Q-thruster > --- UTILITY (10) ----- Experimental Core Analyzer Hacking Suite System Shield Improved System Shield > --- WEAPON (6) ------- (None) > --- INVENTORY (5) ---- Experimental Phase Shifter Experimental Focal Shield Experimental Thermal Shield Enhanced Nova Cannon Peak State ------------ > --- POWER ------------ Light Antimatter Reactor Particle-Quantum Reactor > --- PROPULSION ------- Flying ITA-Myomer Exoskeleton Electron Diverter > --- UTILITY ---------- Armored Scrap Engine Advanced Heat Sink Improved Cooling System High-capacity Storage Unit Experimental Core Analyzer Experimental Reaction Control System Centrium Light Armor Plating Advanced Hacking Suite Ghost Barrier > --- WEAPON ----------- Linear Accelerator Enhanced Hardcell Cannon Enhanced Hardcell Cannon Hpw. Ballistic Nova Construct/G Laser Nova Construct/C Hpw. Ballistic Penetrator Construct/G > --- INVENTORY -------- Light Antimatter Reactor Improved Thunder Leg Advanced Coolant Injector Experimental Coolant Injector Large Storage Unit Improved Transmission Jammer Experimental Reaction Control System Advanced Phase Shifter Experimental Phase Shifter Experimental Focal Shield Advanced Thermal Shield Experimental Thermal Shield Shock Absorption System Advanced Force Field Advanced Force Field System Shield Improved System Shield Advanced Recalibrator Vortex Catalyst Activator [Rating: 197] Favorites ----------- Power Constructs Engine Deuterium Engine Power Core Enhanced Nuclear Core Reactor Constructs Propulsion Improved Titanium Leg Treads Advanced Heavy Siege Treads Leg Improved Titanium Leg Wheel Wheel Hover Unit Combat Antigrav System Flight Unit Constructs Utility Improved Heat Sink Device Improved Heat Sink Storage Large Storage Unit Processor Advanced Targeting Computer Hackware Ghost Barrier Protection Improved Medium Armor Plating Weapon Constructs Energy Gun Advanced Beam Rifle Energy Cannon Constructs Ballistic Gun Constructs Ballistic Cannon Battle Cannon Launcher Rocket Launcher Impact Weapon Powered Hammer Build | -11 -10 -10 -10 -8 -7 -7 -7 -5 -5 -5 -5 -4 -4 -3 -2 -1 ------- Run | Yrd Mat Min Sub Mat Fac Sto Rec Fac Upp Upp War Pro Fac Res Res Acc Slots Evolved 18 | . . . . 4 2 . . 4 . . . . 2 2 2 2 Power 2 | . . . . . . . . 1 . . . . . . . 1 Propulsion 4 | . . . . 1 . . . 1 . . . . 1 . 1 . Utility 8 | . . . . 2 1 . . 2 . . . . 1 2 . . Weapon 4 | . . . . 1 1 . . . . . . . . . 1 1 Parts Attached 170 | 6 6 . 3 43 4 21 6 9 2 . 6 3 7 13 14 27 Power 19 | 1 1 . . 5 . 4 . 1 . . . . . 2 2 3 Engine 10 | 1 1 . . 5 . 3 . . . . . . . . . . Core 2 | . . . . . . 1 . 1 . . . . . . . . Reactor 7 | . . . . . . . . . . . . . . 2 2 3 Propulsion 34 | 2 1 . 1 9 . 3 . . . . . . 2 . 2 14 Treads 1 | . . . . . . . . . . . . . . . . 1 Leg 19 | 2 1 . . 9 . 3 . . . . . . 2 . 1 1 Wheel 1 | . . . 1 . . . . . . . . . . . . . Hover 1 | . . . . . . . . . . . . . . . . 1 Flight 12 | . . . . . . . . . . . . . . . 1 11 Utility 76 | 1 3 . . 15 3 4 3 8 2 . 6 2 5 10 7 7 Device 49 | . 2 . . 10 2 3 3 4 1 . 4 1 5 7 4 3 Storage 7 | 1 1 . . 3 . . . . . . . 1 . 1 . . Processor 4 | . . . . . 1 . . 1 1 . 1 . . . . . Hackware 6 | . . . . . . . . . . . . . . 1 2 3 Protection 10 | . . . . 2 . 1 . 3 . . 1 . . 1 1 1 Artifact . | . . . . . . . . . . . . . . . . . Weapon 41 | 2 1 . 2 14 1 10 3 . . . . 1 . 1 3 3 Energy Gun 20 | 1 1 . . 6 . 9 2 . . . . . . . . 1 Energy Cannon 12 | . . . 1 8 1 . . . . . . . . 1 . 1 Ballistic Gun 1 | 1 . . . . . . . . . . . . . . . . Ballistic Cannon 5 | . . . 1 . . . . . . . . . . . 3 1 Launcher 2 | . . . . . . 1 . . . . . 1 . . . . Special Weapon . | . . . . . . . . . . . . . . . . . Impact Weapon 1 | . . . . . . . 1 . . . . . . . . . Slashing Weapon . | . . . . . . . . . . . . . . . . . Piercing Weapon . | . . . . . . . . . . . . . . . . . Special Melee Weapon . | . . . . . . . . . . . . . . . . . Unidentified Prototypes 24 | . . . . 5 . 5 1 . . . 5 1 1 2 3 1 Corrupted Parts 1 | . . . . . . 1 . . . . . . . . . . System Corruption 9 | . . . . . . 9 . . . . . . . . . . Parts Lost 74 | . 3 . . 7 . 10 1 5 . . . 3 6 8 3 28 Power 6 | . 1 . . 1 . . . . . . . . 1 1 . 2 Propulsion 26 | . 1 . . 4 . 4 . 1 . . . . . . . 16 Utility 28 | . . . . 2 . 3 . 4 . . . 1 3 5 2 8 Weapon 14 | . 1 . . . . 3 1 . . . . 2 2 2 1 2 Highest Loss Streak 10 | . 2 . . 2 . 3 1 2 . . . 3 2 2 2 10 To Critical Strikes 2 | . . . . . . . . 1 . . . . 1 . . . Average Backups 12 | 3 6 5 8 12 14 13 13 13 13 14 13 11 10 13 18 12 Power 1 | . 1 1 1 1 1 1 2 1 1 1 1 . . . 1 1 Propulsion 1 | 2 3 3 4 2 2 1 . . 1 1 1 1 1 . . . Utility 6 | . . . . 2 3 2 5 9 9 10 9 8 8 12 15 8 Weapon 3 | . 1 1 2 5 7 8 4 1 1 1 1 1 1 1 1 2 Tool/Special . | . . . . . . . . . . . . . . . . . Unused Backups 37 | . 2 . . 8 1 1 5 2 1 . 4 . 1 1 4 7 Power 7 | . . . . 4 . 1 1 1 . . . . . . . . Propulsion 9 | . 1 . . 2 1 . 2 . . . . . 1 . 2 . Utility 17 | . . . . 1 . . 1 1 1 . 3 . . 1 2 7 Weapon 3 | . 1 . . 1 . . 1 . . . . . . . . . Tool/Special 1 | . . . . . . . . . . . 1 . . . . . Average Slot Usage (%) 77 | . 94 100 100 99 99 98 80 66 56 58 57 54 59 62 64 55 Engine 4 | . 12 14 14 9 7 6 4 . . . . . . . . . Core 1 | . . . . . . . 2 6 5 5 2 . 3 2 . . Reactor 1 | . . . . . . . . . . . 2 5 1 2 6 5 Leg 13 | . 27 28 16 26 23 21 15 5 5 5 5 5 5 4 4 . Device 18 | . 11 14 14 21 22 21 17 15 16 17 16 17 20 22 18 9 Storage 6 | . 14 14 14 9 7 7 7 5 5 5 5 5 5 4 4 2 Processor 5 | . . . . . 6 7 7 5 10 11 10 7 5 4 4 4 Hackware 1 | . . . . . . . . . . . . . . 3 6 11 Protection 1 | . . . . 4 . 1 . 4 . . . 2 3 2 1 2 Energy Gun 9 | . 16 28 5 5 . 28 19 13 . . . . 7 1 . 1 Energy Cannon 7 | . . . 11 21 30 1 1 . 5 5 5 5 5 5 6 2 Ballistic Gun 2 | . 10 . . . . . . 5 5 5 5 1 . . 3 3 Ballistic Cannon 1 | . . . 11 . . . . . . . . . . 3 3 1 Peak Build Rating 197 | 6 7 7 10 41 45 50 62 94 89 93 114 122 129 141 184 197 Average Rating 72 | 4 6 7 9 34 43 46 53 79 84 90 103 110 116 121 148 131 On Entrance 65 | . 6 7 7 10 39 45 48 58 77 89 93 114 102 103 135 184 Naked Turns . | . . . . . . . . . . . . . . . . . Heaviest Build 117 | 14 20 20 27 54 55 55 45 62 42 46 59 59 65 96 114 117 Greatest Support 131 | 20 20 20 20 60 55 55 52 74 74 74 74 74 87 102 131 124 Greatest Overweight (x) 2 | 2 . . 2 1 . 2 1 1 . . . . . . 1 1 Average Overweight (x) . | . . . 1 . . . . . . . . . . . . . Largest Inventory Capacity 20 | 8 10 10 10 15 15 15 15 15 15 15 15 15 15 20 20 20 Average Capacity 14 | 6 8 10 10 12 15 15 15 15 15 15 15 15 15 18 20 13 Most Carried 20 | 6 8 6 9 15 15 15 15 15 15 15 15 15 14 19 20 20 Average Carried 13 | 3 6 5 8 12 14 13 14 14 14 15 14 12 11 14 19 13 Final Capacity 20 | 8 10 10 10 15 15 15 15 15 15 15 15 15 15 20 20 5 Final Carried 20 | 6 5 6 9 15 15 13 12 14 15 15 15 11 11 19 20 4 Scrap Engine Consumption 174 | . . . . . . . 35 31 2 3 10 3 22 26 40 2 Constructs Created 10 | . . . . . . . 4 . . . . . 2 2 1 1 Constructs Modified 58 | . . . . . . . 8 13 2 1 2 4 9 6 12 1 Class Distribution -------------------- 32% | Construct 15% | Mutant 13% | Gunner 9% | Scavenger-Gunner 5% | Hacker-Mutant 4% | Commander-Construct 4% | Hacker-Construct 4% | Tank 3% | Scavenger-Tank 3% | Hacker-Gunner Dominant Class ---------------- Mutant | -10/Materials Mutant | -10/Mines Mutant | -10/Subcaves Scavenger-Gunner | -8/Materials Gunner | -7/Factory Gunner | -7/Storage Construct | -7/Recycling Construct | -5/Factory Construct | -5/Upper Caves Construct | -5/Upper Caves Commander-Construct | -5/Warlord Construct | -4/Proximity Caves Construct | -4/Factory Hacker-Mutant | -3/Research Hacker-Gunner | -2/Research Hacker-Mutant | -1/Access Resources | -11 -10 -10 -10 -8 -7 -7 -7 -5 -5 -5 -5 -4 -4 -3 -2 -1 ----------- Run | Yrd Mat Min Sub Mat Fac Sto Rec Fac Upp Upp War Pro Fac Res Res Acc Matter Collected 3275 | 208 214 10 70 582 80 360 288 468 34 43 191 107 219 135 210 56 Remotely . | . . . . . . . . . . . . . . . . . Salvage Created 13786 | . 378 . 88 2821 313 2355 1234 2157 50 . 95 310 1610 1358 871 146 Parts 557 | . 27 . 5 122 17 89 33 85 . . 2 13 59 61 28 16 Haulers Intercepted 19 | . 1 . . 6 1 6 3 2 . . . . . . . . Recyclers Shooed 16 | . . . . 4 . 1 2 7 . . . . 1 . . 1 Parts Field Recycled . | . . . . . . . . . . . . . . . . . Retrieved Matter . | . . . . . . . . . . . . . . . . . Parts Self-Destructed 16 | . . . 2 . . . . . . 1 . 13 . . . . Prevented . | . . . . . . . . . . . . . . . . . Kills | -11 -10 -10 -10 -8 -7 -7 -7 -5 -5 -5 -5 -4 -4 -3 -2 -1 ------- Run | Yrd Mat Min Sub Mat Fac Sto Rec Fac Upp Upp War Pro Fac Res Res Acc Combat Hostiles Destroyed 227 | . 13 . 2 47 4 35 10 30 . . 3 9 29 18 12 15 Melee 1 | . . . . . . . . . . . . . . . 1 . Guns 94 | . 13 . . 6 . 28 8 25 . . . 2 9 2 . 1 Cannons 91 | . . . 2 37 4 3 1 . . . 3 6 12 15 8 . AOE 18 | . . . . . . . . . . . . . 4 . . 14 Classes Destroyed 22 | . 4 . 2 9 2 2 1 1 . . 1 . . . . . Worker 9 | . . . . . . 2 . 4 . . . . 1 1 . 1 Builder 11 | . . . . 1 . 2 1 3 . . . . 3 1 . . Tunneler 1 | . 1 . . . . . . . . . . . . . . . Hauler 19 | . 1 . . 6 1 6 3 2 . . . . . . . . Recycler 13 | . . . . 2 . 2 4 3 . . . . . 2 . . Mechanic 1 | . . . . . 1 . . . . . . . . . . . Operator 2 | . . . . 1 . . . . . . . . . . 1 . Watcher 12 | . . . . 4 2 2 . . . . . . 2 1 1 . Swarmer 55 | . 8 . . 7 . 3 . 5 . . . 5 7 3 2 15 Grunt 84 | . 5 . . 21 3 21 1 7 . . 2 4 8 5 7 . Brawler 6 | . . . . 2 . . 1 1 . . . . 1 1 . . Duelist 6 | . . . . 3 . 1 . . . . . . 1 . 1 . Protector 1 | . . . . . . . 1 . . . . . . . . . Sentry 28 | . . . 1 10 . 6 3 5 . . . . 1 2 . . Demolisher 1 | . . . . . . 1 . . . . . . . . . . Specialist 2 | . . . . 2 . . . . . . . . . . . . Hunter 13 | . . . . 1 . . 1 4 . . . . 4 2 1 . Programmer 22 | . . . . . 1 2 . 7 . . . . 7 5 . . Heavy 1 | . . . . 1 . . . . . . . . . . . . Behemoth 1 | . . . . . . . . 1 . . . . . . . . Striker 2 | . . . . . . . . . . . 1 . . . 1 . Subdweller 4 | . . . 1 . . . 3 . . . . . . . . . Best Kill Streak 13 | . 6 . 1 6 2 7 3 6 . . 1 5 13 7 8 6 Combat Bots Only 8 | . 5 . 1 6 2 7 3 6 . . 1 5 8 3 8 6 Max Kills in Single Turn 6 | . 1 . 1 2 1 2 1 5 . . 1 1 4 1 1 6 Gunslinging 1 | . . . . . . 1 . . . . . . . . . . Exploded 6 | . . . . . . . . . . . . . 3 . . 6 Melee 1 | . . . . . . . . . . . . . . . 1 . Uniques/NPCs Destroyed 1 | . . . . . . 1 . . . . . . . . . . 01-MTF (-7/Storage) Combat | -11 -10 -10 -10 -8 -7 -7 -7 -5 -5 -5 -5 -4 -4 -3 -2 -1 -------- Run | Yrd Mat Min Sub Mat Fac Sto Rec Fac Upp Upp War Pro Fac Res Res Acc Hostile Shots Fired 1944 | . 101 . 8 177 10 275 71 210 . 9 69 69 178 127 69 571 Missed 792 | . 37 . 3 53 2 98 34 75 . 1 33 14 68 66 26 282 Hits 1152 | . 64 . 5 124 8 177 37 135 . 8 36 55 110 61 43 289 Melee 19 | . . . . 8 . . 1 . . . 2 . 8 . . . Projectile 1133 | . 64 . 5 116 8 177 36 135 . 8 34 55 102 61 43 289 AOE 5 | . . . . . . 4 . . . . . . . . 1 . Critical Strikes 49 | . . . . 6 . 4 . 12 . . 1 5 5 2 1 13 Actively Blocked 1 | . . . . . . . . . . . . . . . . 1 Part Disruptions 5 | . . . . . . 3 . . . . . . 1 . . 1 Damage Taken 20969 | . 575 . 148 2197 121 2275 409 2491 . 193 494 957 2178 1319 1105 6507 Core 3281 | . 127 . 98 300 . 215 52 294 . 48 54 124 218 9 133 1609 Absorbed by Shields 377 | . . . . . . . . 185 . . 192 . . . . . Redirected to Shielding 149 | . . . . . . . . . . . . . 78 . . 71 Ignored by Resistances 426 | . . . . . . . . . . . 111 73 192 50 . . Regen/Repaired (Parts) 3849 | . 59 . . 250 . 85 16 515 5 100 175 402 952 273 949 68 Core Remaining (%) 66 | 100 . . 10 45 . . 61 . . . . 48 81 99 90 . Volleys Fired 672 | . 49 . 9 132 12 95 58 90 2 6 17 26 70 57 40 9 Largest 5 | . 2 . 2 3 4 4 4 4 2 2 2 2 3 4 5 3 Hottest 449 | . 100 . 113 218 293 293 238 261 128 449 449 449 432 331 329 195 Shots Fired 1876 | . 93 . 17 393 48 352 154 336 4 11 29 36 179 121 93 10 Gun 1164 | . 93 . . 112 . 319 128 336 2 6 16 10 109 24 6 3 Cannon 706 | . . . 17 281 48 30 26 . 2 5 13 26 70 97 87 4 Launcher 6 | . . . . . . 3 . . . . . . . . . 3 Special . | . . . . . . . . . . . . . . . . . Kinetic 303 | . 43 . 8 1 . . . 136 2 6 16 10 . 47 29 5 Thermal 1520 | . 50 . 9 392 48 349 154 200 2 5 13 26 179 66 25 2 Explosive 3 | . . . . . . 3 . . . . . . . . . . Electromagnetic 47 | . . . . . . . . . . . . . . 8 39 . Entropic 3 | . . . . . . . . . . . . . . . . 3 Robot Hit Streak 41 | . 9 . 5 16 15 20 15 41 4 8 5 10 14 12 9 2 Robot Miss Streak 6 | . 5 . 3 3 2 3 3 5 1 1 6 3 6 3 3 1 Penetration Max 1 | . . . . . . . . 1 . . 1 1 . . . . Secondary Targets 14 | . 2 . . . . 9 1 2 . . . . . . . . Max Gunslinging Chain 1 | . 1 . . . . 1 1 1 . . . . . . . . Shots Hit Robots 1256 | . 57 . 6 240 26 249 118 253 3 5 16 30 120 76 55 2 Core Hits 588 | . 21 . 2 91 12 92 34 147 1 . 9 18 75 43 27 16 Critical Kills 6 | . . . . 2 . . . . . . . . 1 2 1 . Critical Parts Destroyed . | . . . . . . . . . . . . . . . . . Critical Strikes 55 | . 6 . 1 8 . 17 7 9 . . . . 1 2 4 . Burn 45 | . 6 . . 6 . 17 7 9 . . . . . . . . Meltdown 5 | . . . . 2 . . . . . . . . . 2 1 . Destroy 1 | . . . . . . . . . . . . . 1 . . . Blast 2 | . . . 1 . . . . . . . . . . . 1 . Corrupt 2 | . . . . . . . . . . . . . . . 2 . Melee Attacks . | . . . . . . . . . . . . . . . . . Impact . | . . . . . . . . . . . . . . . . . Slashing . | . . . . . . . . . . . . . . . . . Piercing . | . . . . . . . . . . . . . . . . . Sneak Attacks . | . . . . . . . . . . . . . . . . . Combat Hostiles . | . . . . . . . . . . . . . . . . . Follow-up Attacks . | . . . . . . . . . . . . . . . . . Damage Inflicted 35141 | 7 736 . 150 5364 722 4986 2413 6754 73 218 633 1013 4555 3303 1954 2260 Guns 16819 | . 717 . . 1161 . 4358 1938 6147 20 60 200 160 1647 338 31 42 Cannons 14206 | . . . 150 4147 699 572 470 . 53 158 433 853 2282 2481 1908 . Explosions 3801 | . . . . . . 44 . 605 . . . . 562 382 . 2208 Melee . | . . . . . . . . . . . . . . . . . Ramming 315 | 7 19 . . 56 23 12 5 2 . . . . 64 102 15 10 Kinetic 5181 | . 315 . 44 19 . . . 2508 20 60 200 160 . 1248 565 42 Thermal 26230 | . 402 . 106 5289 699 4930 2408 4160 53 158 433 853 4265 1440 613 421 Explosive 736 | . . . . . . 44 . 84 . . . . 226 382 . . Electromagnetic 892 | . . . . . . . . . . . . . . 131 761 . Impact . | . . . . . . . . . . . . . . . . . Slashing . | . . . . . . . . . . . . . . . . . Piercing . | . . . . . . . . . . . . . . . . . Entropic 1787 | . . . . . . . . . . . . . . . . 1787 Highest Corruption 17 | . . . . . 1 10 7 4 4 4 4 . 7 3 . 17 Average Corruption 5 | . . . . . 1 3 7 2 4 4 4 . 4 2 . 10 Corruption Purged 5 | . . . . . . 5 . . . . . . . . . . Corruption Blocked . | . . . . . . . . . . . . . . . . . Effects 177 | . . . . . 1 26 81 17 9 7 1 . 7 5 . 23 Message Errors 43 | . . . . . 1 8 22 2 3 . . . 2 1 . 4 Matter Fused 49 | . . . . . . 2 27 5 1 2 . . 4 . . 8 Heat Flow Errors 17 | . . . . . . 3 5 3 2 2 . . . 1 . 1 Energy Discharges 20 | . . . . . . 2 12 1 2 . 1 . . 1 . 1 Parts Rejected 4 | . . . . . . 1 . . . . . . 1 . . 2 Parts Fused 3 | . . . . . . . 2 . . . . . . . . 1 Data Loss (minor) 20 | . . . . . . 5 5 3 1 1 . . . 2 . 3 Data Loss (major) 5 | . . . . . . 1 2 1 . 1 . . . . . . Misfires 6 | . . . . . . 2 3 1 . . . . . . . . Alerts 2 | . . . . . . . 1 . . 1 . . . . . . Misdirections 2 | . . . . . . . . . . . . . . . . 2 Weapon Failures 6 | . . . . . . 2 2 1 . . . . . . . 1 Overload Shots 57 | . . . . . . . 1 32 . 1 3 4 10 6 . . Effects 1 | . . . . . . . . 1 . . . . . . . . Short Circuit 1 | . . . . . . . . 1 . . . . . . . . Overflow Damage 651 | . . . . 65 33 . 33 158 . . . 3 126 171 29 33 Projectiles 241 | . . . . 65 33 . 33 . . . . 3 64 14 29 . Explosions 397 | . . . . . . . . 158 . . . . 62 144 . 33 Melee 13 | . . . . . . . . . . . . . . 13 . . Knockbacks 26 | . . . . 1 . . . . . . . . . 16 9 . Impact 3 | . . . . . . . . . . . . . . 3 . . Kinetic 22 | . . . . 1 . . . . . . . . . 12 9 . Secondary 1 | . . . . . . . . . . . . . . 1 . . Self-Inflicted Damage 429 | . . . . . . . . 70 . . . . 111 100 . 148 Shots 5 | . . . . . . . . 1 . . . . 2 1 . 1 Rammed 3 | . . . . . . . . . . . . . . . . 3 Targets Rammed 27 | 2 4 . . 4 1 2 2 1 . . . . 4 3 1 3 Kicked 24 | 2 4 . . 4 1 2 2 1 . . . . 4 3 1 . Crushed . | . . . . . . . . . . . . . . . . . Highest Temperature 417 | . 63 . . 329 191 306 199 224 215 249 298 417 220 307 93 100 Average Temperature 69 | . 23 . . 72 55 64 45 76 91 128 135 227 53 57 43 44 Received Heat Transfer 3361 | . 114 . 9 855 27 918 108 265 . 24 74 148 234 117 180 288 Effects 3 | . . . . 1 . . . . . . 1 1 . . . . Energy Bleed 1 | . . . . . . . . . . . 1 . . . . . Interference 1 | . . . . 1 . . . . . . . . . . . . Short Circuit 1 | . . . . . . . . . . . . 1 . . . . Siege Activations . | . . . . . . . . . . . . . . . . . Martial Activations . | . . . . . . . . . . . . . . . . . Shielding Activations . | . . . . . . . . . . . . . . . . . Robots Disrupted . | . . . . . . . . . . . . . . . . . Combat Hostiles . | . . . . . . . . . . . . . . . . . Robots Corrupted 2 | . . . . . . . . . . . . . . . 2 . Combat Hostiles 2 | . . . . . . . . . . . . . . . 2 . Parts Fried 6 | . . . . . . . . . . . . . . . 6 . Impact Corruptions 1 | . . . . . . . . . . . . . . 1 . . Robots Melted 24 | . . . . 5 . 4 1 6 . . . 1 4 2 1 . Combat Hostiles 21 | . . . . 4 . 4 1 5 . . . 1 4 1 1 . Parts Melted 126 | . 6 . . 30 1 34 7 15 . . . 6 22 4 1 . Heat Transferred 46274 | . 1628 . 148 9731 999 10767 4548 7216 111 222 515 1484 6627 1399 629 250 Parts Sabotaged . | . . . . . . . . . . . . . . . . . Parts Stolen . | . . . . . . . . . . . . . . . . . Parts Stripped . | . . . . . . . . . . . . . . . . . Power Chain Reactions . | . . . . . . . . . . . . . . . . . Alert | -11 -10 -10 -10 -8 -7 -7 -7 -5 -5 -5 -5 -4 -4 -3 -2 -1 ------- Run | Yrd Mat Min Sub Mat Fac Sto Rec Fac Upp Upp War Pro Fac Res Res Acc Maximum Alert Level 4 | . . . . 3 1 3 1 3 . . . . 3 2 1 4 Low Security (%) 37 | 100 100 100 . 38 23 13 75 . . . . . 52 . 26 22 Level 1 36 | . . . . 36 76 5 24 41 . . . . 21 87 73 20 Level 2 16 | . . . . 10 . 62 . 31 . . . . 18 12 . 19 Level 3 9 | . . . . 14 . 19 . 27 . . . . 7 . . 27 Level 4 . | . . . . . . . . . . . . . . . . 9 Level 5 . | . . . . . . . . . . . . . . . . . High Security . | . . . . . . . . . . . . . . . . . Max Security . | . . . . . . . . . . . . . . . . . Peak Influence 1167 | . 175 34 . 814 359 763 320 969 . . . . 725 484 336 1167 Initial 400 | . . 34 . . 359 72 265 400 . . . . . 365 258 93 Average 307 | . 81 14 . 305 246 532 106 531 . . . . 258 333 242 525 Influence Increases 9762 | . 368 . 20 1477 126 1411 404 1563 5 . 397 200 1053 621 363 1754 Destroy 0b10 Robot/C 4720 | . 260 . 20 940 80 740 180 620 . . 220 180 580 360 240 300 Destroy 0b10 Robot/NC 375 | . 10 . . 70 20 75 65 60 5 . . . 30 25 10 5 Destroy Leader 974 | . 52 . . 250 26 186 . 162 . . . 20 134 82 32 30 Allied During Kill 89 | . . . . . . 14 11 7 . . 57 . . . . . Successful Hack 94 | . . . . . . 42 38 14 . . . . . . . . Select Force Hacks 90 | . . . . . . . 90 . . . . . . . . . Disable Machine 495 | . . . . 60 . 30 15 150 . . . . 165 30 . 45 Anti-Garrison Action 200 | . . . . . . 200 . . . . . . . . . . Destroy Structure 690 | . 1 . . 37 . 34 5 120 . . . . 144 94 36 219 Advance Influence 400 | . . . . . . . . 400 . . . . . . . . Partial Spotted 45 | . . . . . . . . . . . . . . . 30 15 Lose Combat Pursuer 1590 | . 45 . . 120 . 90 . 30 . . 120 . . 30 15 1140 Influence Decreases 8623 | . 280 88 20 685 759 889 1085 622 595 290 207 451 356 858 666 772 Entered New Map 2317 | . . 54 . . 433 87 416 . 349 68 61 251 . 332 202 64 Time Decay 5106 | . 250 34 20 615 326 542 619 542 246 222 66 170 296 446 434 278 Search Patrol Dispatched 150 | . . . . . . . . . . . . . . . . 150 Lost Part 740 | . 30 . . 70 . 100 10 50 . . . 30 60 80 30 280 Lost Ally 310 | . . . . . . 160 40 30 . . 80 . . . . . Squads Dispatched 60 | . 3 . . 11 2 12 . 11 . . . . 6 4 3 8 Investigation 13 | . 2 . . 2 . 4 . 1 . . . . . . 2 2 Extermination 14 | . . . . . 1 3 . 3 . . . . 1 2 . 4 Reinforcement 17 | . 1 . . 5 1 2 . 2 . . . . 1 2 1 2 Assault 6 | . . . . 1 . 2 . 2 . . . . 1 . . . Garrison 10 | . . . . 3 . 1 . 3 . . . . 3 . . . Intercept . | . . . . . . . . . . . . . . . . . Searches Triggered 1 | . . . . . . . . . . . . . . . . 1 Construction Impeded 5 | . . . . 1 . . . 1 . . . . 1 2 . . Haulers Reinforced 3 | . . . . . . 1 . 1 . . . . . . 1 . Active Scanning Responses . | . . . . . . . . . . . . . . . . . Cargo Convoy Interrupts . | . . . . . . . . . . . . . . . . . Stealth | -11 -10 -10 -10 -8 -7 -7 -7 -5 -5 -5 -5 -4 -4 -3 -2 -1 --------- Run | Yrd Mat Min Sub Mat Fac Sto Rec Fac Upp Upp War Pro Fac Res Res Acc Distress Signals 25 | . . . . 2 . 2 4 4 . . . . 3 . 6 4 Communications Jammed . | . . . . . . . . . . . . . . . . . Distress Signals . | . . . . . . . . . . . . . . . . . Times Spotted 463 | . 20 . 2 65 9 50 10 45 . 2 52 9 32 23 23 121 Peak Tracking Total 17 | . 5 . 1 8 3 7 2 7 . 1 17 5 5 5 8 17 Tactical Retreats 36 | . 2 . . 4 . 4 . 2 . . 2 . . 2 1 19 Traps | -11 -10 -10 -10 -8 -7 -7 -7 -5 -5 -5 -5 -4 -4 -3 -2 -1 ------- Run | Yrd Mat Min Sub Mat Fac Sto Rec Fac Upp Upp War Pro Fac Res Res Acc Traps Triggered 11 | . 2 . 1 3 . 1 . 2 . . . . 2 . . . Indirectly . | . . . . . . . . . . . . . . . . . Trap Hack Attempts . | . . . . . . . . . . . . . . . . . Triggered . | . . . . . . . . . . . . . . . . . Disarmed . | . . . . . . . . . . . . . . . . . Reprogrammed . | . . . . . . . . . . . . . . . . . Reused . | . . . . . . . . . . . . . . . . . Traps Extracted . | . . . . . . . . . . . . . . . . . Installed . | . . . . . . . . . . . . . . . . . Triggered . | . . . . . . . . . . . . . . . . . Machines | -11 -10 -10 -10 -8 -7 -7 -7 -5 -5 -5 -5 -4 -4 -3 -2 -1 ---------- Run | Yrd Mat Min Sub Mat Fac Sto Rec Fac Upp Upp War Pro Fac Res Res Acc Machines Disabled 34 | . . . . 4 . 2 1 10 . . 1 . 11 2 . 3 Max in Single Turn 6 | . . . . 1 . 1 1 4 . . 1 . 6 1 . 1 Garrison Access 4 | . . . . 1 . 1 . . . . . . . . 2 . Energy Cycler 1 | . . . . . . . . . . . . . . . . 1 Machines Repaired . | . . . . . . . . . . . . . . . . . Machines Dismantled . | . . . . . . . . . . . . . . . . . Machines Sabotaged . | . . . . . . . . . . . . . . . . . Overloaded Fab Kills . | . . . . . . . . . . . . . . . . . Hacking | -11 -10 -10 -10 -8 -7 -7 -7 -5 -5 -5 -5 -4 -4 -3 -2 -1 --------- Run | Yrd Mat Min Sub Mat Fac Sto Rec Fac Upp Upp War Pro Fac Res Res Acc Machines Accessed 60 | . 3 . 1 9 2 9 11 3 . . 11 . 1 4 2 4 Terminals 27 | . 2 . . 6 1 6 4 1 . . . . 1 2 . 4 Fabricators . | . . . . . . . . . . . . . . . . . Repair Stations 3 | . 1 . . 1 . 1 . . . . . . . . . . Recycling Units 12 | . . . . 1 1 1 5 1 . . . . . 2 1 . Scanalyzers . | . . . . . . . . . . . . . . . . . Garrison Access 4 | . . . . 1 . 1 . 1 . . . . . . 1 . Total Hacks 158 | . 12 . 3 24 3 20 33 11 . . 18 . 2 13 5 14 Successful 70 | . 5 . 3 7 . 7 18 5 . . 18 . 1 4 1 1 Failed 88 | . 7 . . 17 3 13 15 6 . . . . 1 9 4 13 Catastrophic 26 | . 1 . . 4 1 2 3 2 . . . . 1 3 2 7 Database Lockouts . | . . . . . . . . . . . . . . . . . Manual 30 | . 7 . . 1 . 5 8 3 . . . . . 1 2 3 Terminals 74 | . 9 . . 12 2 13 9 6 . . . . 2 7 . 14 Fabricators . | . . . . . . . . . . . . . . . . . Repair Stations 10 | . 3 . . 4 . 3 . . . . . . . . . . Recycling Units 35 | . . . . 6 1 2 15 2 . . . . . 6 3 . Scanalyzers . | . . . . . . . . . . . . . . . . . Garrison Access 9 | . . . . 2 . 2 . 3 . . . . . . 2 . Terminal Hacks 42 | . 2 . 3 2 . 2 10 3 . . 18 . 1 . . 1 Record 22 | . . . 3 . . . 7 1 . . 10 . . . . 1 Prototype ID Bank 9 | . 1 . . . . . 1 1 . . 6 . . . . . Open Door 4 | . . . . . . 2 . . . . 2 . . . . . Alert Level 3 | . 1 . . 1 . . . . . . . . 1 . . . Locate Traps 2 | . . . . 1 . . . 1 . . . . . . . . Release Object 2 | . . . . . . . 2 . . . . . . . . . Fabricator Hacks . | . . . . . . . . . . . . . . . . . Repair Station Hacks 6 | . 2 . . 2 . 2 . . . . . . . . . . Scan Component 3 | . 1 . . 1 . 1 . . . . . . . . . . Repair 3 | . 1 . . 1 . 1 . . . . . . . . . . Recycling Unit Hacks 8 | . . . . 1 . . 3 1 . . . . . 3 . . Retrieve Components 8 | . . . . 1 . . 3 1 . . . . . 3 . . Scanalyzer . | . . . . . . . . . . . . . . . . . Garrison Access Hacks 1 | . . . . 1 . . . . . . . . . . . . Seal Access 1 | . . . . 1 . . . . . . . . . . . . Unauthorized Hacks 13 | . 1 . . 1 . 3 5 1 . . . . . 1 1 . Terminals 6 | . 1 . . . . 2 2 1 . . . . . . . . Botnet 5 | . 1 . . . . 1 2 1 . . . . . . . . Disrupt 1 | . . . . . . 1 . . . . . . . . . . Fabricators . | . . . . . . . . . . . . . . . . . Repair Stations 1 | . . . . 1 . . . . . . . . . . . . Patch 1 | . . . . 1 . . . . . . . . . . . . Recycling Units 4 | . . . . . . . 3 . . . . . . 1 . . Monitor 1 | . . . . . . . . . . . . . . 1 . . Tunnel 3 | . . . . . . . 3 . . . . . . . . . Scanalyzers . | . . . . . . . . . . . . . . . . . Garrison Access 2 | . . . . . . 1 . . . . . . . . 1 . Reprogram 1 | . . . . . . . . . . . . . . . 1 . Jam 1 | . . . . . . 1 . . . . . . . . . . Data Cores Recovered 1 | . . . . 1 . . . . . . . . . . . . Used . | . . . . . . . . . . . . . . . . . Hacking Detections 43 | . 3 . . 9 2 8 8 3 . . . . 1 3 2 4 Full Trace Events 12 | . . . . 1 . 3 5 . . . . . . . 1 2 Feedback Events 1 | . . . . . . . . . . . . . . . . 1 Corruption 1 | . . . . . . . . . . . . . . . . 1 Feedback Blocked . | . . . . . . . . . . . . . . . . . Robot Schematics Acquired . | . . . . . . . . . . . . . . . . . Robots Built . | . . . . . . . . . . . . . . . . . Authchips . | . . . . . . . . . . . . . . . . . Time . | . . . . . . . . . . . . . . . . . Total Robot Build Rating . | . . . . . . . . . . . . . . . . . Part Schematics Acquired . | . . . . . . . . . . . . . . . . . Parts Built . | . . . . . . . . . . . . . . . . . Authchips . | . . . . . . . . . . . . . . . . . Time . | . . . . . . . . . . . . . . . . . Total Part Build Rating . | . . . . . . . . . . . . . . . . . Parts Repaired 3 | . 1 . . 1 . 1 . . . . . . . . . . Time 100 | . 26 . . 44 . 30 . . . . . . . . . . Parts Recycled . | . . . . . . . . . . . . . . . . . Recycled Matter . | . . . . . . . . . . . . . . . . . Retrieved Matter . | . . . . . . . . . . . . . . . . . Retrieved Components 30 | . . . . 9 . . 14 . . . . . . 7 . . Parts Scanalyzed . | . . . . . . . . . . . . . . . . . Part Schematics Acquired . | . . . . . . . . . . . . . . . . . Parts Damaged . | . . . . . . . . . . . . . . . . . Bothacking | -11 -10 -10 -10 -8 -7 -7 -7 -5 -5 -5 -5 -4 -4 -3 -2 -1 ------------ Run | Yrd Mat Min Sub Mat Fac Sto Rec Fac Upp Upp War Pro Fac Res Res Acc Used RIF Installer . | . . . . . . . . . . . . . . . . . Robots Hacked . | . . . . . . . . . . . . . . . . . Non-combat . | . . . . . . . . . . . . . . . . . Combat . | . . . . . . . . . . . . . . . . . Robot Hacks Applied . | . . . . . . . . . . . . . . . . . Relay Couplers Released 2 | . . . . . . . . . . . . . . . 2 . Machine Destruction 2 | . . . . . . . . . . . . . . . 2 . Fabnet Peak Effective % . | . . . . . . . . . . . . . . . . . Robots Rewired 9 | . . . . . . . 4 . . . 5 . . . . . Allies Hacked . | . . . . . . . . . . . . . . . . . Hacks Repelled . | . . . . . . . . . . . . . . . . . Allies | -11 -10 -10 -10 -8 -7 -7 -7 -5 -5 -5 -5 -4 -4 -3 -2 -1 -------- Run | Yrd Mat Min Sub Mat Fac Sto Rec Fac Upp Upp War Pro Fac Res Res Acc Total Allies 20 | . . . . . . 10 4 . . . 5 . . . 1 . Largest Group 10 | . . . . . . 10 3 2 . . 5 . . . 1 1 Highest-Rated Group 280 | . . . . . . 173 60 60 . . 280 . . . 27 27 Highest-Rated Ally 68 | . . . . . . 29 40 40 . . 68 . . . 27 27 Total Orders . | . . . . . . . . . . . . . . . . . Ally Attacks 56 | . . . . . . 23 6 6 . . 21 . . . . . Total Damage 1418 | . . . . . . 319 189 90 . . 820 . . . . . Kills 18 | . . . . . . 6 3 1 . . 8 . . . . . Allies Corrupted . | . . . . . . . . . . . . . . . . . Allies Melted . | . . . . . . . . . . . . . . . . . Intel | -11 -10 -10 -10 -8 -7 -7 -7 -5 -5 -5 -5 -4 -4 -3 -2 -1 ------- Run | Yrd Mat Min Sub Mat Fac Sto Rec Fac Upp Upp War Pro Fac Res Res Acc Active Infowar (turns) 2156 | . . . . . . . . . 468 461 625 74 . 528 . . Sensors 528 | . . . . . . . . . . . . . . 528 . . Cloaking 1628 | . . . . . . . . . 468 461 625 74 . . . . Robot Analysis Total . | . . . . . . . . . . . . . . . . . Derelict Logs Recovered 5 | . . . 2 . . . . . 1 . . 2 . . . . Drone Launches . | . . . . . . . . . . . . . . . . . Drone Recoveries . | . . . . . . . . . . . . . . . . . Exploration | -11 -10 -10 -10 -8 -7 -7 -7 -5 -5 -5 -5 -4 -4 -3 -2 -1 ------------- Run | Yrd Mat Min Sub Mat Fac Sto Rec Fac Upp Upp War Pro Fac Res Res Acc Turns Passed 16890 | 59 687 106 771 2320 730 1559 2453 1543 523 461 1319 654 917 1103 1074 611 Spaces Moved 10292 | 35 384 67 656 1154 519 729 1136 639 352 303 831 322 436 657 863 1209 Core 83 | 9 . . . . . . . . . . . . . . . 74 Treads 5 | . . . . . . . . . . . . . . . . 5 Legs 8215 | 26 384 67 110 1154 519 729 1097 639 352 303 831 322 436 657 589 . Wheels 585 | . . . 546 . . . 39 . . . . . . . . . Hover 27 | . . . . . . . . . . . . . . . 27 . Flight 1377 | . . . . . . . . . . . . . . . 247 1130 Fastest Speed 32 | 50 120 120 110 120 126 126 126 145 145 145 145 145 123 114 54 32 Average Speed 124 | 121 120 120 111 129 126 135 159 168 145 145 145 145 138 124 100 42 Slowest Speed 270 | 190 120 120 120 190 126 270 215 215 145 145 145 145 157 127 179 160 Overloaded Moves . | . . . . . . . . . . . . . . . . . Propulsion Burnouts . | . . . . . . . . . . . . . . . . . Robots Hopped 27 | . . . . . . . . . . . . . . . . 27 Potential Cave-ins 2 | . . . . . . . . . . . 2 . . . . . Cave-ins Triggered . | . . . . . . . . . . . . . . . . . Exploration Rate (%) 46 | 4 64 21 40 92 9 91 99 22 58 50 87 59 13 15 30 44 Regions Visited 16 Branch Regions 8 Pre-discovered Areas 3 | . . . . . . . 3 . . . . . . . . . Known Exits Taken 2 | . . . . . 1 . . . . . . 1 . . . . Unknown Exits Taken 14 | 1 1 1 1 1 . 1 1 1 1 1 1 . 1 1 1 . Scrap Searched 10 | . . 2 1 . . . . . 3 . . 4 . . . . Spaces Dug 73 | . . . . 6 . 23 1 . . 2 . . 1 4 . 36 Terrain Destroyed 389 | . . . 2 31 . 38 2 56 . 4 6 5 83 43 13 106 Melee . | . . . . . . . . . . . . . . . . . Projectile 116 | . . . 2 31 . 4 2 1 . 4 6 5 21 23 13 4 AOE 272 | . . . . . . 34 . 54 . . . . 62 20 . 102 Terrain Rammed . | . . . . . . . . . . . . . . . . . Walls Destroyed . | . . . . . . . . . . . . . . . . . Machines Disabled . | . . . . . . . . . . . . . . . . . Actions | -11 -10 -10 -10 -8 -7 -7 -7 -5 -5 -5 -5 -4 -4 -3 -2 -1 --------- Run | Yrd Mat Min Sub Mat Fac Sto Rec Fac Upp Upp War Pro Fac Res Res Acc Total 12962 | 48 516 92 676 1686 564 1066 1667 885 361 313 916 475 597 834 996 1270 Wait 1419 | . 63 25 6 255 19 188 399 120 3 5 6 116 71 90 51 2 Move 10227 | 34 383 66 655 1153 518 728 1135 638 351 302 830 321 436 656 862 1159 Hop 23 | . . . . . . . . . . . . . . . . 23 Pick Up 124 | 6 5 1 3 34 4 11 16 10 2 . 4 1 3 10 10 4 Fast Attach 67 | 6 2 . . 6 . 5 2 1 2 . 3 . 4 8 7 21 Attach 57 | . 3 . . 7 2 10 3 7 . . 1 3 4 4 2 11 Detach 19 | . . . . . . . . 3 . . . 1 2 1 2 10 Swap 119 | . 3 . 3 52 5 19 3 7 . . 8 2 2 3 9 3 Drop 150 | . 4 . . 43 3 8 27 8 1 . 10 5 2 2 12 25 Fire 672 | . 49 . 9 132 12 95 58 90 2 6 17 26 70 57 40 9 Melee . | . . . . . . . . . . . . . . . . . Ram 1 | . . . . . . . . . . . . . . . . 1 Kick 23 | 2 4 . . 4 1 2 2 1 . . . . 3 3 1 . Crush 2 | . . . . . . . . . . . . . . . . 2 Escape Stasis . | . . . . . . . . . . . . . . . . . Rewire 59 | . . . . . . . 22 . . . 37 . . . . . Trap . | . . . . . . . . . . . . . . . . . Miscellaneous . | . . . . . . . . . . . . . . . . . Route ------- -11/Scrapyard -10/Materials (discovered 3 exits: [*Mat x2] / [*Min]) -10/Mines -10/Subcaves -8/Materials (discovered 3 exits: *Fac x3) -7/Factory -7/Storage (discovered 2 exits: [*Fac] / *Rec) -7/Recycling -5/Factory -5/Upper Caves -5/Upper Caves -5/Warlord -4/Proximity Caves -4/Factory -3/Research (discovered 2 exits: *Res / Arm) -2/Research (discovered 2 exits: *Acc / Tes) -1/Access History --------- Turn | Location | Event 20 | -11/Scrapyard | Discovered new exit (range 15) 60 | -11/Scrapyard | Entered Materials 181 | -10/Materials | Discovered new exit (range 10) 300 | -10/Materials | Build established: Mutant 487 | -10/Materials | Discovered new exit (range 3) 625 | -10/Materials | Discovered new exit (range 15) 689 | -10/Materials | Repaired Med. Laser 744 | -10/Materials | Core integrity fell below 50% 747 | -10/Materials | Entered Mines 848 | -10/Mines | Discovered new exit (range 4) 853 | -10/Mines | Entered Subcaves 854 | -10/Subcaves | Approached by a straggling Scientist 881 | -10/Subcaves | Learned Materials security intel 936 | -10/Subcaves | Shifting Twisted Machinery released Battle Cannon 969 | -10/Subcaves | Shifting Twisted Machinery released Sub. Beam Cannon 1098 | -10/Subcaves | Visited Clippyterm 1101 | -10/Subcaves | Learned Factory garrison access intel 1159 | -10/Subcaves | Discovered new exit (range 6) 1297 | -10/Subcaves | A swath of the cavern ceiling suddenly collapsed 1393 | -10/Subcaves | Core integrity fell below 20% 1624 | -10/Subcaves | Entered Materials 1624 | -8/Materials | Evolved 4 slots: Propulsion x1, Utility x2, Weapon x1 2352 | -8/Materials | Build established: Scavenger-Gunner 3085 | -8/Materials | Core integrity fell below 50% 3106 | -8/Materials | Build established: Scavenger-Tank 3112 | -8/Materials | Discovered new exit (range 16) 3258 | -8/Materials | Discovered new exit (range 3) 3401 | -8/Materials | Garrison activated, responded to threat 3554 | -8/Materials | Build established: Tank 3624 | -8/Materials | First assault squad dispatched 3741 | -8/Materials | Repaired Imp. Titanium Leg 3818 | -8/Materials | Discovered new exit (range 12) 3944 | -8/Materials | Entered Factory 3944 | -7/Factory | Evolved 2 slots: Utility x1, Weapon x1 3945 | -7/Factory | Identified exit to Storage 3946 | -7/Factory | Loaded intel: 4 garrison access locations 4253 | -7/Factory | Build established: Gunner 4674 | -7/Factory | Entered Storage 4774 | -7/Storage | Lost 3 parts (1n2w) 4799 | -7/Storage | Destroyed 7 combat bots 4811 | -7/Storage | Garrison activated, responded to threat 5422 | -7/Storage | Met 01-MTF 5433 | -7/Storage | Discovered new exit (range 9) 5474 | -7/Storage | First assault squad dispatched 5521 | -7/Storage | System corruption reached 10% 5580 | -7/Storage | Discovered new exit (range 5) 5732 | -7/Storage | Assisted by bots powering up and referring to "LRC-V3" 5852 | -7/Storage | Destroyed 01-MTF 5954 | -7/Storage | Repaired Broken Imp. Titanium Leg 6018 | -7/Storage | Lost 3 parts (2n1u) 6233 | -7/Storage | Entered Recycling 6549 | -7/Recycling | Discovered new exit (range 4) 6896 | -7/Recycling | Build established: Scavenger-Gunner 6931 | -7/Recycling | Entered Scraplab 6961 | -7/Recycling | Found Prototype Device 6961 | -7/Recycling | Identified Scrap Engine 7235 | -7/Recycling | Build established: Mutant 8087 | -7/Recycling | Build established: Construct 8686 | -7/Recycling | Entered Factory 8686 | -5/Factory | Accompanied by 2 allies 8686 | -5/Factory | Evolved 4 slots: Power x1, Propulsion x1, Utility x2 9448 | -5/Factory | Garrison activated, responded to threat 9511 | -5/Factory | Spotted B-75 Beast 9540 | -5/Factory | Destroyed B-75 Beast 9886 | -5/Factory | First assault squad dispatched 10209 | -5/Factory | Discovered new exit (range 15) 10229 | -5/Factory | Entered Upper Caves 10251 | -5/Upper Caves | Learned 8 Factory zone layouts 10743 | -5/Upper Caves | Discovered new exit (range 5) 10752 | -5/Upper Caves | Entered another Upper Caves area 10829 | -5/Upper Caves | Encountered a Warlord checkpoint 10895 | -5/Upper Caves | Spotted B-75 Beast 10985 | -5/Upper Caves | Lost 3 allies 11188 | -5/Upper Caves | Discovered new exit (range 11) 11213 | -5/Upper Caves | Entered Warlord 11269 | -5/Warlord | System corruption cleaned by Quarantine Array 11459 | -5/Warlord | Learned Quarantine trap positions 11460 | -5/Warlord | Learned 4 Research zone layouts 11461 | -5/Warlord | Learned Armory scanalyzer intel 11461 | -5/Warlord | Learned Research scanalyzer intel 11666 | -5/Warlord | Visited the Vortex Lab 11674 | -5/Warlord | Warlord's base attacked by MAIN.C 11682 | -5/Warlord | Found Prototype Launcher 11775 | -5/Warlord | Found Prototype Processor 11775 | -5/Warlord | Identified Exp. Core Analyzer 11786 | -5/Warlord | Found Prototype Device 11786 | -5/Warlord | Identified Exp. Phase Shifter 11793 | -5/Warlord | Found Prototype Device 11793 | -5/Warlord | Identified Exp. Focal Shield 11813 | -5/Warlord | Found Prototype Hackware 11834 | -5/Warlord | Build established: Commander-Construct 11985 | -5/Warlord | Met Warlord 12024 | -5/Warlord | Warlord forces counterattacked 12229 | -5/Warlord | Opened side exit 12258 | -5/Warlord | Discovered new exit (range 10) 12274 | -5/Warlord | Spotted Striker 12349 | -5/Warlord | Warlord base infiltrated, sounded retreat 12352 | -5/Warlord | Lost 5 allies 12370 | -5/Warlord | Spotted Executioner 12429 | -5/Warlord | Spotted Striker 12436 | -5/Warlord | Destroyed Striker 12456 | -5/Warlord | Lost 9 allies 12499 | -5/Warlord | Spotted Executioner 12500 | -5/Warlord | Spotted Executioner 12528 | -5/Warlord | Lost 4 allies 12532 | -5/Warlord | Entered Proximity Caves 12584 | -4/Proximity Caves | Build established: Construct 12598 | -4/Proximity Caves | Learned Research trap positions 12614 | -4/Proximity Caves | Identified exit to Factory 12786 | -4/Proximity Caves | Core integrity fell below 50% 12801 | -4/Proximity Caves | Lost 3 parts (1u2w) 13184 | -4/Proximity Caves | Identified Vortex Catalyst Activator 13186 | -4/Proximity Caves | Entered Factory 13186 | -4/Factory | Evolved 2 slots: Propulsion x1, Utility x1 13362 | -4/Factory | Garrison activated, responded to threat 13909 | -4/Factory | Destroyed 8 combat bots 13936 | -4/Factory | First assault squad dispatched 14094 | -4/Factory | Discovered new exit (range 7) 14103 | -4/Factory | Entered Research 14103 | -3/Research | Evolved 2 slots: Utility x2 14104 | -3/Research | Identified exit to Armory 14105 | -3/Research | Loaded intel: 59 trap records 14106 | -3/Research | Loaded intel: 6 scanalyzer locations 14176 | -3/Research | Identified Ghost Barrier 14475 | -3/Research | Build established: Hacker-Mutant 14948 | -3/Research | Found Prototype Device 14948 | -3/Research | Identified Exp. Thermal Shield 15056 | -3/Research | Discovered new exit (range 11) 15206 | -3/Research | Entered another Research area 15206 | -2/Research | Warlord forces began assault on 0b10 15206 | -2/Research | Evolved 2 slots: Propulsion x1, Weapon x1 15207 | -2/Research | Identified exit to Testing 15316 | -2/Research | Research machine network offline 15536 | -2/Research | Borebot progress halted 15540 | -2/Research | Destroyed 8 combat bots 15588 | -2/Research | Borebot progress halted 15627 | -2/Research | Build established: Hacker-Gunner 15797 | -2/Research | Warlord destroyed during the assault 15803 | -2/Research | Spotted Striker 15805 | -2/Research | Spotted Striker 15829 | -2/Research | Destroyed Striker 16019 | -2/Research | Borebot progress halted 16054 | -2/Research | Discovered new exit (range 11) 16121 | -2/Research | Build established: Hacker-Construct 16228 | -2/Research | Spotted Striker 16280 | -2/Research | Entered Access 16280 | -1/Access | Accompanied by 1 ally 16280 | -1/Access | Evolved 2 slots: Power x1, Weapon x1 16417 | -1/Access | Energy Cycler disabled 16482 | -1/Access | Lost 5 parts (1p2n2u) 16499 | -1/Access | Spotted B-99 Colossus 16591 | -1/Access | Spotted B-99 Colossus 16611 | -1/Access | Lost 3 parts (1p1n1u) 16648 | -1/Access | Lost 3 parts (1n1u1w) 16679 | -1/Access | System corruption reached 10% 16754 | -1/Access | Lost 7 parts (5n2u) 16780 | -1/Access | Search patrols dispatched 16830 | -1/Access | Core integrity fell below 50% 16870 | -1/Access | Core integrity fell below 20% 16891 | -1/Access | Destroyed by G-73 Enforcer with Phase Gun Last Messages --------------- 16839_ Identified Cmb. Antigrav System. 16840_ Scrap Engine destroyed. 16841_ The unstable cave ceiling collapses. 16841_ K-01 Serf collects debris. 16843_ System corrupted: Matter fused (-10). 16850_ Slammed into S-43 Plague. 16861_ Cmb. Antigrav System destroyed. 16862_ ALERT: Potential suspicious activity detected, Programmers report to Access Zone 5H. 16864_ Acquired Q-thruster. 16865_ System corrupted: Energy discharge (-22). 16866_ Acquired Q-thruster. 16869_ Q-thruster destroyed. 16869_ S-43 Plague destroyed. 16871_ Q-thruster destroyed. 16871_ K-01 Serf collects debris. 16879_ Acquired Enh. Nova Cannon. 16880_ FU #F1M9AAS0JX4B